bitfinex/quotes_ETHUSD_20250529
["timestamp","ask_amount","ask_price","bid_price","bid_amount"]
[1748543741775,1.4417,2654.6,2653.8,21.443037]
[1748543741978,5.243,2654.5,2653.8,14.680943]
[1748543742678,5.243,2654.5,2653.8,14.47198]
[1748543743770,5.224,2654.4,2653.8,14.47198]
[1748543743972,5.224,2654.4,2654.0,24.16798]
[1748543744182,5.224,2654.4,2654.0,14.16798]
[1748543744867,5.224,2654.4,2653.9,1.8991244]
[1748543747383,5.186,2654.3,2654.0,18.806709]
[1748543747966,5.186,2654.3,2654.0,14.892459]
[1748543748352,1.4417,2654.6,2654.0,2.236354]
[1748543748547,5.174,2654.5,2654.0,2.236354]
[1748543749254,5.165,2654.4,2654.0,0.41354784]
[1748543749451,5.165,2654.4,2654.0,16.974781]
[1748543749655,5.165,2654.4,2654.0,14.999071]
[1748543749885,5.165,2654.4,2654.0,13.801071]
[1748543750093,5.165,2654.4,2654.0,3.403114]
[1748543750261,1.4417,2654.6,2653.8,17.763194]
[1748543750457,5.156,2654.3,2654.0,4.141114]
[1748543751504,5.156,2654.3,2654.0,3.837114]
[1748543751664,5.156,2654.3,2653.6,21.44898]
[1748543751989,5.156,2654.3,2653.6,11.44898]
[1748543752455,5.156,2654.3,2652.1,8.00660898]
[1748543752456,1.2913,2654.2,2653.0,22.020452]
[1748543752656,1.2913,2654.2,2653.2,28.141304]
[1748543752859,1.2913,2654.2,2653.2,18.141304]
[1748543753094,1.2913,2654.2,2653.2,13.65673]
[1748543753280,1.2913,2654.2,2653.0,27.913939]
[1748543753482,1.2913,2654.2,2653.2,4.51980265]
[1748543753684,1.2913,2654.2,2653.3,0.45198027]
[1748543753885,1.2913,2654.2,2653.3,10.0]
[1748543754059,5.119,2654.1,2653.4,10.0]
[1748543754372,5.119,2654.1,2653.3,3.778494]
[1748543754556,5.119,2654.1,2653.3,2.867494]
[1748543754963,5.119,2654.1,2653.3,2.563494]
[1748543755294,5.119,2654.1,2653.0,10.0]
[1748543755512,5.119,2654.1,2653.2,10.0]
[1748543755656,5.119,2654.1,2652.7,12.960367]
[1748543755657,1.4044,2653.9,2652.7,12.960367]
[1748543756470,1.4044,2653.9,2652.9,4.5204038]
[1748543756666,1.4044,2653.9,2653.2,31.846294]
[1748543756983,1.4044,2653.9,2653.2,13.636102]
[1748543757198,1.4044,2653.9,2653.3,10.146969]
[1748543757371,5.088,2653.8,2653.3,10.146969]
[1748543757560,5.088,2653.8,2653.3,8.638909]
[1748543758268,1.4044,2653.9,2653.3,13.15863848]
[1748543758572,5.077,2653.8,2653.3,27.666859]
[1748543758775,1.4044,2653.9,2653.5,32.863209]
[1748543759002,5.074,2653.8,2653.5,20.887499]
[1748543759368,5.074,2653.8,2653.5,19.125499]
[1748543759905,1.4044,2653.9,2653.5,17.983469]
[1748543760225,1.4044,2653.9,2653.4,3.08883096]
[1748543760226,5.063,2653.9,2653.6,10.0]
[1748543760363,5.06,2653.9,2653.2,1.4058]
[1748543761089,5.06,2653.9,2653.3,3.87925]
[1748543761291,5.06,2653.9,2653.5,13.982002]
[1748543761489,5.06,2653.9,2653.5,2.33922]
[1748543763009,1.358,2654.3,2653.5,2.33922]
[1748543763175,5.031,2654.2,2653.5,2.33922]
[1748543765410,5.031,2654.2,2653.4,0.528505]
[1748543765715,5.031,2654.2,2652.8,33.159523]
[1748543765716,5.06012215,2654.1,2652.8,33.159523]
[1748543765917,5.06012215,2654.1,2652.9,19.782816]
[1748543765918,9.76012215,2654.1,2652.9,19.782816]
[1748543766616,5.07707351,2654.0,2652.9,15.524527]
[1748543766823,1.3091,2654.0,2652.9,13.852966]
[1748543767117,1.3091,2654.0,2653.0,13.561608]
[1748543767489,1.3091,2654.0,2653.0,12.561608]
[1748543768212,5.07700501,2654.0,2653.0,10.98135]
[1748543768402,1.3091,2654.0,2653.0,2.33118]
[1748543769002,5.0770028,2654.0,2653.0,2.33118]
[1748543769207,5.0770028,2654.0,2652.8,10.0]
[1748543769379,5.0770028,2654.0,2652.9,10.0]
[1748543769690,5.0770028,2654.0,2653.0,10.0]
[1748543769894,1.3091,2653.8,2652.8,12.1308996]
[1748543770098,4.971,2653.7,2652.8,12.1308996]
[1748543770381,4.971,2653.7,2652.2,0.74660012]
[1748543770382,5.05967497,2653.6,2652.5,2.184817]
[1748543770601,5.05967234,2653.6,2652.4,10.0]
[1748543770921,5.0595875,2653.6,2652.6,10.0]
[1748543771094,5.0595875,2653.6,2652.3,15.292443]
[1748543771277,1.2911,2653.6,2652.5,2.898697]
[1748543771481,4.959,2653.5,2652.6,10.0]
[1748543771681,4.959,2653.5,2652.6,20.178672]
[1748543771901,4.954,2653.4,2652.5,8.543479]
[1748543772817,1.2911,2653.6,2652.5,8.543479]
[1748543773021,1.2911,2653.6,2653.0,10.576689]
[1748543773182,1.2911,2653.6,2652.6,1.30646667]
[1748543773183,4.944,2653.5,2652.8,25.256856]
[1748543773390,4.944,2653.5,2652.7,28.828356]
[1748543773596,1.2911,2653.6,2652.6,0.55]
[1748543773892,4.939,2653.5,2652.7,29.724741]
[1748543774123,4.939,2653.5,2653.0,9.639309]
[1748543774304,4.939,2653.5,2652.9,15.444143]
[1748543774610,4.939,2653.5,2653.1,5.175496]
[1748543775927,1.3757,2654.1,2653.2,10.0]
[1748543776124,1.3757,2654.1,2653.1,5.175496]
[1748543776125,1.3757,2654.1,2653.4,10.0]
[1748543776326,1.3757,2654.1,2653.5,10.0]
[1748543776327,4.918,2654.0,2653.5,10.0]
[1748543776623,4.918,2654.0,2653.3,18.892703]
[1748543776827,4.918,2654.0,2653.4,6.045359]
[1748543777131,4.918,2654.0,2653.3,29.491309]
[1748543777329,4.918,2654.0,2653.3,18.892703]
[1748543777827,1.3757,2654.1,2653.2,4.51963236]
[1748543777828,1.3757,2654.1,2653.2,11.240342]
[1748543778028,1.3757,2654.1,2653.3,4.51963236]
[1748543778198,4.903,2654.0,2653.5,7.105492]
[1748543778402,4.901,2653.9,2653.6,10.0]
[1748543778595,4.901,2653.9,2653.5,19.535492]
[1748543778804,4.901,2653.9,2653.6,10.0]
[1748543779005,1.3757,2654.1,2653.5,17.105492]
[1748543779207,1.3757,2654.1,2653.6,13.600986]
[1748543779407,1.3757,2654.1,2653.7,10.0]
[1748543779635,1.3757,2654.1,2653.5,2.32011218]
[1748543779811,1.3757,2654.1,2653.4,25.073118]
[1748543780138,6.2617,2654.1,2653.3,0.55]
[1748543780631,1.3757,2654.1,2653.4,4.51900297]
[1748543780805,1.3757,2654.1,2653.5,2.78613]
[1748543781131,1.3757,2654.1,2653.5,24.53913]
[1748543781329,1.3757,2654.1,2653.4,27.349105]
[1748543781532,1.3757,2654.1,2653.6,3.26528]
[1748543781738,1.3757,2654.1,2653.7,10.0]
[1748543781922,1.3757,2654.1,2653.6,5.393162]
[1748543782126,1.3757,2654.1,2653.5,3.1868108]
[1748543782324,1.3757,2654.1,2653.3,16.92868]
[1748543782640,1.3757,2654.1,2653.2,2.41399]
[1748543782809,1.3757,2654.1,2653.1,4.921031]
[1748543783000,5.14349773,2654.1,2653.0,5.359781]
[1748543783235,3.76797836,2654.0,2652.9,10.0]
[1748543783436,6.1863,2653.9,2652.9,10.0]
[1748543783641,6.1863,2653.9,2652.9,1.95876094]
[1748543783842,4.86,2653.9,2653.0,2.494324]
[1748543784002,1.3263,2653.6,2652.6,6.140308]
[1748543784200,1.3263,2653.6,2652.6,3.95718]
[1748543785711,4.842,2653.5,2652.7,10.0]
[1748543785917,4.842,2653.5,2652.6,25.730555]
[1748543786121,4.842,2653.5,2652.7,2.7381555]
[1748543786430,4.842,2653.5,2652.6,27.706265]
[1748543786806,4.842,2653.5,2652.6,25.730555]
[1748543787536,1.3415,2653.4,2652.5,1.651]
[1748543787740,1.3415,2653.4,2652.3,10.0]
[1748543787741,1.3415,2653.3,2652.3,10.0]
[1748543787926,1.3415,2653.3,2652.4,2.335731]
[1748543789319,1.3415,2653.3,2652.3,1.45215599]
[1748543789520,1.3415,2653.2,2652.0,17.79654]
[1748543789760,1.3415,2653.2,2652.1,10.0]
[1748543789954,1.3415,2653.2,2652.2,2.543788]
[1748543790140,1.3415,2653.2,2652.1,2.723218]
[1748543790345,1.3415,2653.2,2652.2,2.565297]
[1748543791324,1.3338,2653.1,2652.2,2.565297]
[1748543791553,1.3338,2653.1,2652.2,2.248297]
[1748543791855,4.842,2653.5,2651.8,12.276871]
[1748543791856,1.3338,2652.9,2651.8,12.276871]
[1748543792150,1.3338,2652.7,2652.0,10.0]
[1748543792351,3.7699187,2652.6,2651.5,15.82554]
[1748543792558,3.7699187,2652.6,2651.4,3.736]
[1748543792559,1.3338,2652.5,2651.7,10.0]
[1748543792854,1.3338,2652.5,2651.4,2.4104]
[1748543792855,1.3338,2652.4,2651.5,12.334246]
[1748543793157,1.3338,2652.4,2651.5,2.2878646]
[1748543793327,1.3338,2652.4,2651.5,4.628762]
[1748543794056,1.3338,2652.4,2651.6,4.321662]
[1748543796360,1.3338,2652.4,2651.6,4.004662]
[1748543797628,1.3338,2652.4,2651.6,2.098662]
[1748543797838,1.3338,2652.4,2651.5,2.437808]
[1748543798129,4.7,2652.3,2651.6,4.49859]
[1748543798323,4.762,2652.2,2651.6,4.49859]
[1748543798866,4.7,2652.3,2651.7,10.0]
[1748543799166,4.742,2652.5,2651.9,15.541748]
[1748543799388,4.742,2652.7,2652.0,13.074092]
[1748543799588,4.742,2652.7,2652.1,13.466406]
[1748543799810,4.741,2652.6,2652.1,3.466406]
[1748543799929,4.741,2652.6,2652.2,10.0]
[1748543800132,4.741,2652.6,2652.2,1.79880224]
[1748543801081,4.732,2652.6,2652.2,1.79880224]
[1748543802032,1.4299,2652.5,2652.1,3.15108554]
[1748543802430,1.4299,2652.5,2652.1,4.236292]
[1748543802754,1.4299,2652.5,2652.1,3.909]
[1748543803151,1.4299,2652.5,2652.0,10.0]
[1748543803465,1.4299,2652.5,2651.5,11.3901]
[1748543803684,1.4299,2652.5,2652.0,2.0178]
[1748543803882,1.4299,2652.5,2652.0,10.0]
[1748543804089,1.4299,2652.5,2651.9,4.52217701]
[1748543804464,1.4299,2652.5,2652.1,10.0]
[1748543804656,1.4299,2652.5,2652.2,10.0]
[1748543804857,1.4299,2652.5,2652.1,4.999584]
[1748543805070,1.4299,2652.5,2652.0,2.132384]
[1748543805276,1.4299,2652.5,2652.1,4.608168]
[1748543805458,1.4299,2652.5,2652.1,2.327168]
[1748543806077,1.4299,2652.5,2652.0,10.0]
[1748543806281,2.04609,2652.5,2651.5,9.267128]
[1748543806545,2.04609,2652.5,2651.7,10.0]
[1748543806744,2.04609,2652.5,2651.5,10.0]
[1748543806989,1.4299,2652.4,2651.4,1.597]
[1748543807164,1.4299,2652.3,2651.5,2.016539]
[1748543807359,1.4299,2652.1,2651.2,4.52208493]
[1748543807556,4.686,2652.0,2651.3,2.360982]
[1748543807861,4.686,2652.0,2651.3,10.0]
[1748543808062,4.686,2652.0,2651.2,12.568356]
[1748543808366,4.686,2652.0,2651.3,10.0]
[1748543808688,5.3485944,2652.0,2651.3,2.282156]
[1748543808845,5.3485944,2652.0,2651.3,10.0]
[1748543809045,5.3485944,2652.0,2651.2,10.0]
[1748543809483,5.3485944,2652.0,2651.2,12.570056]
[1748543809686,1.4299,2651.9,2651.0,2.370116]
[1748543809981,0.61619,2651.8,2651.0,2.370116]
[1748543810488,0.61619,2651.8,2651.0,2.001616]
[1748543813618,4.647,2651.7,2651.0,12.2807]
[1748543813760,4.647,2651.7,2651.0,2.2807]
[1748543814759,4.647,2651.7,2651.0,2.571658]
[1748543814981,5.16701784,2651.7,2651.0,2.571658]
[1748543815401,4.647,2651.7,2651.0,2.571658]
[1748543815563,4.647,2651.7,2651.0,7.09547998]
[1748543815903,6.1299,2651.9,2651.1,16.96949]
[1748543816262,6.0589,2651.9,2651.1,16.96949]
[1748543816490,6.0569,2651.9,2651.1,16.96949]
[1748543816724,6.0569,2651.9,2651.3,38.872597]
[1748543816879,6.0569,2651.9,2651.3,18.872597]
[1748543817202,4.624,2652.0,2651.3,18.872597]
[1748543817409,4.622,2652.0,2651.7,4.52300763]
[1748543817612,4.622,2652.0,2651.8,0.45230076]
[1748543817819,4.62,2652.0,2651.8,0.45230076]
[1748543818670,1.3378,2652.6,2651.8,0.45230076]
[1748543818911,4.614,2652.5,2651.8,0.45230076]
[1748543819413,4.61,2652.4,2651.8,0.45230076]
[1748543819698,4.607,2652.3,2651.8,0.45230076]
[1748543820006,4.607,2652.2,2651.8,0.45230076]
[1748543820965,4.599,2652.2,2651.8,0.45230076]
[1748543821277,1.3378,2652.6,2651.8,0.45230076]
[1748543821507,1.3378,2652.6,2651.6,1.3109]
[1748543821508,4.595,2652.5,2652.2,2.469958]
[1748543821724,1.3378,2652.6,2652.1,13.621782]
[1748543822005,4.593,2652.4,2652.1,10.0]
[1748543822206,4.593,2652.4,2651.7,2.231046]
[1748543823195,4.593,2652.4,2652.0,12.420286]
[1748543823517,4.593,2652.4,2652.0,2.69424083]
[1748543823673,4.593,2652.4,2651.9,12.326366]
[1748543823870,4.593,2652.4,2652.0,10.0]
[1748543824073,4.593,2652.4,2652.0,12.326366]
[1748543824975,4.593,2652.4,2652.0,11.987366]
[1748543825905,4.593,2652.4,2652.0,3.58890968]
[1748543826075,4.593,2652.4,2651.9,13.963076]
[1748543826271,4.593,2652.4,2652.0,2.271]
[1748543826475,1.3378,2652.6,2651.9,1.84853052]
[1748543826476,4.565,2652.3,2651.9,14.17248]
[1748543826678,4.565,2652.3,2652.0,3.194]
[1748543827311,1.3378,2652.6,2652.0,3.194]
[1748543827522,4.56,2652.3,2652.0,3.194]
[1748543828331,1.3378,2652.6,2652.1,10.429153]
[1748543828529,4.553,2652.4,2652.1,9.42319]
[1748543829012,4.549,2652.5,2652.1,9.42319]
[1748543829172,4.548,2652.5,2652.1,9.42319]
[1748543829375,4.548,2652.5,2652.2,7.44748]
[1748543829586,4.548,2652.5,2652.1,11.57170421]
[1748543829886,4.548,2652.5,2652.2,4.14448]
[1748543830873,4.548,2652.5,2652.1,11.57170421]
[1748543831090,4.548,2652.5,2652.1,1.57170421]
[1748543831277,4.548,2652.5,2651.3,10.0]
[1748543831478,1.326,2652.4,2651.3,2.274117]
[1748543831830,9.79620038,2652.4,2651.3,2.274117]
[1748543831990,1.326,2652.3,2651.3,2.274117]
[1748543832195,1.326,2652.1,2651.2,2.954069]
[1748543832429,1.326,2651.9,2651.1,10.0]
[1748543832582,6.026,2651.9,2651.1,10.0]
[1748543832783,6.026,2651.9,2651.1,2.786497]
[1748543833484,6.026,2651.9,2651.2,7.174723]
[1748543833690,6.026,2651.9,2651.2,2.31308202]
[1748543834091,6.026,2651.9,2651.2,30.174783]
[1748543834292,6.026,2651.9,2651.2,6.835723]
[1748543834491,6.026,2651.9,2651.3,10.0]
[1748543835392,6.026,2651.9,2651.2,16.939197]
[1748543835622,6.026,2651.9,2651.3,10.0]
[1748543835832,6.026,2651.9,2651.2,13.513765]
[1748543836297,6.026,2651.9,2651.3,10.0]
[1748543836497,6.026,2651.9,2651.2,16.843255]
[1748543836729,6.026,2651.9,2651.3,10.0]
[1748543836914,6.026,2651.9,2651.3,1.53155622]
[1748543837244,6.026,2651.9,2651.3,11.53155622]
[1748543837448,6.026,2651.9,2651.3,1.53155622]
[1748543837648,6.026,2651.9,2651.2,14.711786]
[1748543837943,6.026,2651.9,2651.3,10.0]
[1748543838846,6.026,2651.9,2651.2,14.47242]
[1748543838991,6.026,2651.9,2651.3,10.0]
[1748543839192,6.026,2651.9,2651.2,14.47242]
[1748543839397,6.026,2651.9,2651.3,10.0]
[1748543841640,6.026,2651.9,2651.3,14.52331056]
[1748543841844,4.477,2651.8,2651.5,10.0]
[1748543842142,4.476,2651.7,2651.5,4.347663]
[1748543842745,4.472,2651.6,2651.5,4.347663]
[1748543842951,4.472,2651.6,2651.5,6.23476036]
[1748543843291,4.472,2651.6,2651.5,1.88709736]
[1748543843497,4.472,2651.6,2651.4,10.0]
[1748543843732,4.472,2651.6,2651.2,4.52319435]
[1748543843733,4.472,2651.6,2651.5,10.0]
[1748543843944,4.466,2651.6,2651.4,10.0]
[1748543844117,4.466,2651.6,2651.4,1.87349484]
[1748543844429,4.466,2651.6,2651.2,3.747896]
[1748543845310,4.466,2651.6,2651.3,10.0]
[1748543845493,4.466,2651.6,2651.2,23.265173]
[1748543845691,4.466,2651.6,2651.2,13.265173]
[1748543846004,4.466,2651.6,2651.1,5.31584509]
[1748543846005,4.466,2651.6,2651.3,1.85810181]
[1748543846328,4.466,2651.6,2651.2,10.583973]
[1748543846531,4.466,2651.6,2651.2,8.343364]
[1748543847095,4.466,2651.6,2651.2,7.453656]
[1748543847295,4.466,2651.6,2651.3,10.0]
[1748543847513,4.466,2651.6,2651.2,17.458656]
[1748543847712,4.466,2651.6,2651.3,2.27745011]
[1748543847914,4.466,2651.6,2651.2,16.352706]
[1748543848195,4.466,2651.6,2651.2,14.365896]
[1748543848623,4.466,2651.6,2651.2,10.2102]
[1748543849334,1.2412,2651.5,2651.2,10.2102]
[1748543849498,1.2412,2651.5,2650.9,0.66666667]
[1748543849705,1.2412,2651.5,2651.0,4.397496]
[1748543849935,1.2412,2651.5,2651.0,4.072264]
[1748543850432,1.2412,2651.5,2651.0,2.244704]
[1748543851015,1.2412,2651.5,2651.0,1.74347612]
[1748543851211,4.429,2651.4,2651.0,1.74347612]
[1748543851556,4.429,2651.4,2650.9,20.323039]
[1748543851731,4.429,2651.4,2651.0,6.38091]
[1748543851898,4.429,2651.4,2651.1,10.0]
[1748543852238,4.422,2651.4,2651.0,2.125936]
[1748543852410,4.422,2651.4,2650.9,4.52374251]
[1748543852610,4.422,2651.4,2651.0,2.248936]
[1748543853116,4.422,2651.4,2651.0,3.970936]
[1748543853441,4.422,2651.4,2651.0,3.901646]
[1748543853605,4.422,2651.4,2651.1,10.0]
[1748543854149,4.422,2651.4,2650.9,4.97611676]
[1748543854150,4.422,2651.4,2650.5,9.3801]
[1748543854363,1.2845,2651.2,2650.3,0.514]
[1748543854521,1.2845,2651.2,2650.3,21.582967]
[1748543854711,4.411,2651.1,2650.3,21.582967]
[1748543855051,4.411,2651.1,2650.2,21.582967]
[1748543855348,1.2845,2651.2,2650.4,21.582967]
[1748543855516,1.2845,2651.2,2650.6,30.437576]
[1748543855517,5.6925,2651.2,2650.6,30.437576]
[1748543855838,5.6925,2651.2,2650.6,20.437576]
[1748543856149,5.6925,2651.2,2650.8,17.041426]
[1748543856352,5.6925,2651.2,2650.7,10.0]
[1748543857016,5.6925,2651.2,2650.6,10.383131]
[1748543857437,5.6925,2651.2,2650.7,13.271289]
[1748543857641,5.6925,2651.2,2650.7,3.271289]
[1748543857854,5.6925,2651.2,2650.9,10.0]
[1748543858066,5.6925,2651.2,2651.0,10.0]
[1748543858272,5.6925,2651.2,2650.3,12.613494]
[1748543858416,5.6925,2651.2,2650.5,24.793728]
[1748543858621,5.6925,2651.2,2650.5,14.793728]
[1748543858821,5.6925,2651.2,2650.4,1.2613494]
[1748543859023,5.6925,2651.2,2650.2,2.595]
[1748543859324,5.6925,2651.2,2650.4,4.5240291]
[1748543859515,5.6925,2651.2,2650.5,10.0]
[1748543860129,5.6925,2651.2,2650.3,15.25776285]
[1748543860331,5.6925,2651.2,2650.4,15.697296]
[1748543860532,5.6925,2651.2,2650.6,10.0]
[1748543860817,5.6925,2651.2,2650.5,2.02218648]
[1748543861220,5.6925,2651.2,2649.9,21.582967]
[1748543861221,1.3095,2651.1,2649.9,21.582967]
[1748543861448,1.3439,2651.0,2649.8,1.334]
[1748543861649,3.77250949,2650.8,2649.8,1.334]
[1748543861847,1.3439,2650.6,2649.8,1.334]
[1748543862620,1.3439,2650.6,2649.9,3.572212]
[1748543863157,1.3439,2650.6,2649.8,10.0]
[1748543863670,1.3439,2650.6,2649.3,21.582967]
[1748543863872,4.383,2650.7,2649.3,5.897908]
[1748543863873,1.2704,2650.5,2649.3,5.897908]
[1748543864086,12.85560573,2650.7,2649.1,2.601]
[1748543864087,1.2704,2650.4,2649.5,15.541342]
[1748543864376,1.2704,2650.4,2649.5,5.541342]
[1748543864585,1.2704,2650.4,2649.5,2.936342]
[1748543864894,1.2704,2650.2,2649.2,10.0]
[1748543865084,5.6384,2650.1,2649.3,1.1334]
[1748543865232,8.47260308,2650.7,2649.1,11.334]
[1748543865233,1.2704,2649.9,2649.1,1.334]
[1748543865436,1.2704,2649.9,2649.8,3.77386972]
[1748543866548,1.2704,2649.9,2649.8,3.67386972]
[1748543868081,5.62098601,2649.9,2649.8,3.67386972]
[1748543868734,5.62098601,2649.9,2649.6,10.0]
[1748543868735,4.7,2650.7,2649.6,10.0]
[1748543868950,5.20772509,2650.7,2650.0,10.0]
[1748543869162,4.357,2650.6,2650.1,4.52544008]
[1748543869577,5.6566008,2651.4,2649.7,1.37742718]
[1748543869578,4.7,2651.7,2650.5,4.52505966]
[1748543869797,4.7,2651.9,2651.7,0.0059849]
[1748543870024,8.12802345,2651.8,2651.7,0.0059849]
[1748543870217,10.09246977,2651.8,2651.7,0.0059849]
[1748543870871,3.21184632,2651.8,2651.7,0.0059849]
[1748543871071,7.56884632,2651.8,2651.7,0.0059849]
[1748543871466,11.33986977,2651.8,2651.7,0.0059849]
[1748543871666,7.56884632,2651.8,2651.7,0.0059849]
[1748543872310,11.33986977,2651.8,2651.7,0.0059849]
[1748543873819,3.20607757,2651.8,2651.7,0.0059849]
[1748543874020,7.56307757,2651.8,2651.7,0.0059849]
[1748543876009,1.2474,2651.8,2651.7,0.0059849]
[1748543876174,5.6034,2651.8,2651.7,0.0059849]
[1748543877979,1.2474,2651.8,2651.7,0.0059849]
[1748543878174,5.6034,2651.8,2651.7,0.0059849]
[1748543879109,1.2474,2651.8,2651.7,0.0059849]
[1748543879409,4.356,2651.9,2651.7,0.0059849]
[1748543879595,1.3,2652.4,2651.9,0.00771202]
[1748543879797,5.3330149,2652.3,2651.9,0.00771202]
[1748543880174,0.9770149,2652.3,2651.9,0.00771202]
[1748543880374,4.356,2652.2,2651.9,0.00771202]
[1748543880697,1.3,2652.4,2651.9,0.00771202]
[1748543880900,4.355,2652.3,2651.9,0.00771202]
[1748543881274,1.36,2652.2,2651.9,0.00771202]
[1748543881475,5.10963906,2652.0,2651.9,0.00771202]
[1748543885029,10.35963906,2652.0,2651.9,0.00771202]
[1748543887301,10.95963906,2652.0,2651.9,0.00771202]
[1748543890336,5.65262345,2651.8,2651.7,0.0059849]
[1748543893813,3.77234396,2650.9,2650.1,1.3254]
[1748543894019,10.31178798,2650.8,2650.1,1.3254]
[1748543894220,4.354,2650.7,2650.1,1.3254]
[1748543896973,5.95778798,2650.8,2650.1,1.3254]
[1748543896974,4.354,2650.6,2650.1,1.3254]
[1748543898374,4.69228798,2650.8,2650.1,1.3254]
[1748543898580,4.354,2650.7,2650.1,5.85090062]
[1748543898879,4.354,2650.7,2650.2,0.59101492]
[1748543899419,4.69228798,2650.8,2650.2,0.59101492]
[1748543899919,4.69228798,2650.8,2649.6,10.0]
[1748543900119,4.69228798,2650.8,2650.0,4.52509967]
[1748543903020,4.69228798,2650.8,2650.1,1.2904]
[1748543903223,4.69228798,2650.8,2650.2,0.58154997]
[1748543905070,4.69228798,2650.8,2650.1,1.2904]
[1748543905686,9.04428798,2650.8,2650.1,1.2904]
[1748543905854,4.69228798,2650.8,2650.1,1.2904]
[1748543906035,9.04428798,2650.8,2650.2,7.942897]
[1748543906238,9.04428798,2650.8,2650.1,5.81570564]
[1748543906475,9.04428798,2650.8,2650.2,0.58157056]
[1748543906769,9.04428798,2650.8,2650.3,2.595143]
[1748543906970,9.04428798,2650.8,2650.3,2.350143]
[1748543907502,9.04428798,2650.8,2650.3,5.431975]
[1748543907503,4.69228798,2650.8,2650.3,5.431975]
[1748543907686,4.69228798,2650.8,2650.4,1.2258]
[1748543907988,4.69228798,2650.8,2650.5,0.5750882]
[1748543908494,4.69228798,2650.8,2650.4,1.2258]
[1748543909036,5.96278798,2650.8,2649.7,2.5308]
[1748543909287,5.0432307,2650.6,2649.7,1.2258]
[1748543909504,4.351,2650.7,2649.4,1.2258]
[1748543909505,1.2705,2650.3,2649.4,1.2258]
[1748543909790,1.2705,2650.3,2649.1,1.2258]
[1748543909791,3.77346341,2650.1,2649.1,1.2258]
[1748543910004,5.04423846,2649.9,2649.1,1.2258]
[1748543910145,4.69228798,2649.8,2649.0,0.19759235]
[1748543910340,0.97365434,2649.7,2649.0,0.19759235]
[1748543910551,4.69228798,2649.6,2649.0,0.19759235]
[1748543910749,4.69228798,2649.6,2649.1,4.0571]
[1748543911013,4.69228798,2649.6,2649.3,5.378537]
[1748543911316,4.69228798,2649.6,2649.3,9.90598106]
[1748543911453,4.351,2649.9,2649.5,10.0]
[1748543911791,4.351,2649.9,2649.5,3.106595]
[1748543912171,4.351,2649.9,2649.3,4.888523]
[1748543912474,4.351,2649.9,2649.3,1.06417671]
[1748543912671,4.351,2649.9,2649.2,1.2258]
[1748543913478,4.69228798,2650.2,2649.2,1.2258]
[1748543913794,4.351,2649.8,2649.2,1.2258]
[1748543916442,4.69228798,2650.2,2649.4,7.176636]
[1748543916644,4.35,2650.1,2649.5,10.0]
[1748543916858,4.35,2650.1,2649.6,1.7176636]
[1748543918284,4.35,2650.1,2649.3,10.718136]
[1748543918481,4.35,2650.1,2649.2,11.2258]
[1748543918786,4.35,2650.1,2649.2,1.2258]
[1748543921763,4.35,2650.1,2649.3,2.643952]
[1748543921966,4.35,2650.1,2649.2,1.2258]
[1748543922177,5.75860122,2650.1,2649.4,10.0]
[1748543922381,4.69228798,2650.0,2649.2,3.82081705]
[1748543925006,4.348,2649.9,2649.4,10.0]
[1748543925207,4.348,2649.9,2649.4,2.703975]
[1748543925579,4.69228798,2650.0,2649.4,2.703975]
[1748543925812,4.348,2649.9,2649.4,2.037143]
[1748543926318,4.348,2649.9,2649.3,10.0]
[1748543926524,4.348,2649.9,2649.4,14.986685]
[1748543926671,4.69228798,2650.0,2649.4,14.986685]
[1748543926867,4.69228798,2650.0,2649.5,10.0]
[1748543927094,4.348,2649.9,2649.4,28.540954]
[1748543927300,4.348,2649.9,2649.4,27.441213]
[1748543927672,4.348,2649.9,2649.3,5.39959453]
[1748543927673,4.348,2649.9,2649.6,10.0]
[1748543927793,4.348,2649.9,2649.4,10.0]
[1748543928356,4.347,2649.9,2649.5,10.0]
[1748543928489,4.347,2649.9,2649.4,16.045126]
[1748543928817,4.347,2649.9,2649.5,10.0]
[1748543928982,4.347,2649.9,2649.5,1.92253824]
[1748543932917,4.347,2649.9,2649.3,0.87295103]
[1748543933113,4.347,2649.9,2649.2,1.2258]
[1748543933499,1.2682,2649.8,2649.0,1.46499235]
[1748543936120,4.344,2649.8,2649.1,20.43107]
[1748543936323,1.2682,2650.0,2649.1,20.43107]
[1748543936533,4.344,2649.9,2649.3,34.442552]
[1748543936778,4.344,2649.9,2649.3,22.012552]
[1748543936926,1.2682,2650.0,2649.3,22.012552]
[1748543937122,4.344,2649.9,2649.3,22.012552]
[1748543937327,4.344,2649.9,2649.3,4.52633988]
[1748543937623,4.344,2649.9,2649.4,0.67159461]
[1748543938442,4.344,2649.9,2649.2,4.52633988]
[1748543938443,1.2682,2649.8,2649.0,0.19759235]
[1748543938749,1.2682,2649.6,2649.0,0.19759235]
[1748543939126,3.7742245,2649.6,2649.0,0.19759235]
[1748543939330,1.2682,2649.5,2649.0,0.19759235]
[1748543939527,0.50424245,2649.4,2649.0,0.19759235]
[1748543941169,1.2682,2649.5,2649.0,0.19759235]